bitfinex-derivatives/quotes_SOLF0:USTF0_20241203
["timestamp","ask_amount","ask_price","bid_price","bid_amount"]
[1733224035295,2.34,224.68,224.54,14.9689879]
[1733224035495,2.2256,224.63,224.56,2.2262]
[1733224035995,2.2256,224.63,224.54,14.9689879]
[1733224036192,4.4469,224.84,224.62,12.6289879]
[1733224036393,43.31881968,224.77,224.63,2.34]
[1733224037401,12.6289879,224.74,224.63,2.34]
[1733224038699,12.6289879,224.74,224.62,4.5655]
[1733224038899,12.6289879,224.74,224.62,2.34]
[1733224039194,2.2253,224.65,224.62,2.34]
[1733224039698,3.8395,224.73,224.62,2.34]
[1733224039892,12.6289879,224.71,224.59,2.34]
[1733224040999,2.2255,224.63,224.59,2.34]
[1733224041192,12.6289879,224.71,224.56,12.6289879]
[1733224041397,12.6289879,224.68,224.55,2.34]
[1733224041599,2.2264,224.55,224.5,12.6289879]
[1733224041799,14.9689879,224.62,224.47,14.9689879]
[1733224042407,2.2262,224.56,224.49,2.51932767]
[1733224042698,14.9689879,224.62,224.49,0.29252767]
[1733224043204,2.928,224.61,224.49,0.29252767]
[1733224044601,2.2265,224.53,224.49,0.29252767]
[1733224045208,2.2268,224.5,224.49,0.29252767]
[1733224045907,2.2267,224.52,224.49,0.29252767]
[1733224046102,2.2267,224.52,224.46,1.5235]
[1733224047299,2.2267,224.51,224.46,1.5235]
[1733224048107,2.2267,224.51,224.44,12.6289879]
[1733224049806,2.34,224.57,224.44,12.6289879]
[1733224050502,2.2265,224.53,224.46,2.2271]
[1733224050706,2.2265,224.53,224.45,1.5037]
[1733224050707,2.34,224.58,224.47,12.6289879]
[1733224051003,2.34,224.58,224.45,1.5037]
[1733224051004,2.2268,224.5,224.45,1.5037]
[1733224051310,2.34,224.58,224.45,1.5037]
[1733224051508,2.2268,224.5,224.45,1.5037]
[1733224051709,2.34,224.58,224.45,1.5037]
[1733224052205,2.2266,224.52,224.45,1.5037]
[1733224052510,2.34,224.58,224.45,1.5037]
[1733224052911,2.2267,224.51,224.45,1.5037]
[1733224053211,2.34,224.58,224.45,1.5037]
[1733224053614,12.6289879,224.59,224.45,1.5037]
[1733224053802,2.34,224.58,224.45,1.5037]
[1733224054107,2.2268,224.51,224.45,1.5037]
[1733224054510,2.34,224.58,224.45,1.5037]
[1733224054511,12.6289879,224.56,224.45,1.5037]
[1733224055211,12.6289879,224.56,224.44,12.6289879]
[1733224055409,2.34,224.58,224.44,12.6289879]
[1733224055604,2.34,224.58,224.45,2.2273]
[1733224056409,2.34,224.59,224.47,12.6289879]
[1733224056911,2.34,224.59,224.49,2.2269]
[1733224056912,2.2264,224.55,224.49,2.2269]
[1733224057910,2.2264,224.54,224.48,5.9796]
[1733224058313,2.32,224.59,224.48,5.9796]
[1733224058508,2.2264,224.55,224.48,5.9796]
[1733224059413,2.2264,224.54,224.48,5.9796]
[1733224061213,2.2265,224.53,224.48,5.9796]
[1733224062014,2.32,224.6,224.51,2.2266]
[1733224063017,12.6289879,224.64,224.48,3.7526]
[1733224063215,2.226,224.59,224.5,12.6289879]
[1733224063518,2.32,224.63,224.5,12.6289879]
[1733224064111,2.32,224.63,224.51,2.2267]
[1733224064416,2.32,224.63,224.5,12.6289879]
[1733224064616,2.226,224.59,224.52,2.2265]
[1733224064915,2.226,224.59,224.5,12.6289879]
[1733224065511,2.226,224.59,224.53,2.2264]
[1733224065814,14.9489879,224.64,224.5,12.6289879]
[1733224066014,12.6289879,224.64,224.52,2.2265]
[1733224066217,2.32,224.63,224.5,12.6289879]
[1733224066913,2.226,224.59,224.53,2.2265]
[1733224067717,2.2259,224.6,224.5,12.6289879]
[1733224067918,14.9489879,224.64,224.51,1.5129]
[1733224068616,2.2258,224.61,224.53,2.2265]
[1733224068811,14.9489879,224.64,224.53,2.2265]
[1733224069217,2.226,224.59,224.53,2.2265]
[1733224069619,14.9489879,224.64,224.52,2.2266]
[1733224070420,14.9489879,224.64,224.51,1.5129]
[1733224070916,12.6289879,224.61,224.48,3.6596]
[1733224071313,2.2265,224.54,224.48,3.6596]
[1733224072115,2.32,224.59,224.5,2.2268]
[1733224072116,2.2262,224.56,224.5,2.2268]
[1733224072320,2.32,224.59,224.48,1.4326]
[1733224073123,2.8922,224.63,224.48,1.4326]
[1733224073323,2.226,224.58,224.52,2.2266]
[1733224073825,2.32,224.62,224.52,2.2266]
[1733224074020,2.32,224.62,224.5,12.6289879]
[1733224074221,2.226,224.58,224.53,2.2265]
[1733224074417,2.32,224.63,224.5,12.6289879]
[1733224074625,2.2259,224.6,224.54,2.2264]
[1733224074819,2.32,224.63,224.54,2.2264]
[1733224076024,2.2259,224.59,224.54,2.2264]
[1733224077520,2.2259,224.59,224.53,2.32]
[1733224077720,2.2259,224.59,224.53,4.5465]
[1733224078125,2.2259,224.59,224.54,2.2263]
[1733224079124,2.2259,224.59,224.53,2.32]
[1733224079319,2.2259,224.59,224.53,4.5465]
[1733224080829,2.226,224.58,224.53,4.5465]
[1733224081026,2.32,224.63,224.5,12.6289879]
[1733224081228,2.32,224.63,224.5,2.32]
[1733224081730,2.2263,224.55,224.5,2.32]
[1733224081926,12.6289879,224.61,224.5,2.32]
[1733224082328,2.226,224.58,224.5,2.32]
[1733224082524,12.6289879,224.61,224.5,2.32]
[1733224082835,12.6289879,224.61,224.43,1.4382]
[1733224082836,2.2266,224.52,224.46,4.5471]
[1733224083035,14.9489879,224.58,224.46,2.32]
[1733224083232,2.32,224.58,224.47,12.6289879]
[1733224083433,2.2265,224.54,224.48,2.2269]
[1733224084336,2.2265,224.54,224.49,2.2269]
[1733224084527,2.32,224.58,224.47,12.6289879]
[1733224084731,2.2263,224.55,224.47,12.6289879]
[1733224085134,2.2266,224.52,224.47,12.6289879]
[1733224085635,2.32,224.58,224.47,14.8560879]
[1733224085837,2.32,224.58,224.47,12.6289879]
[1733224086738,2.2265,224.53,224.47,12.6289879]
[1733224086937,2.28,224.6,224.47,12.6289879]
[1733224087431,2.2264,224.55,224.49,2.2269]
[1733224087635,2.28,224.6,224.49,2.2269]
[1733224087838,2.2262,224.57,224.51,2.2266]
[1733224088435,2.226,224.59,224.54,2.2264]
[1733224089431,363.71621552,224.85,224.56,12.6289879]
[1733224089634,12.6289879,224.75,224.6,12.6289879]
[1733224091043,12.6289879,224.75,224.62,2.2256]
[1733224091044,2.2247,224.71,224.62,2.2256]
[1733224091238,2.2247,224.71,224.63,2.28]
[1733224091744,12.6289879,224.78,224.63,14.9089879]
[1733224091941,2.28,224.8,224.63,2.28]
[1733224091942,12.6289879,224.75,224.63,2.28]
[1733224092241,12.6289879,224.72,224.63,2.28]
[1733224093038,2.225,224.69,224.62,2.28]
[1733224093238,12.6289879,224.72,224.62,2.28]
[1733224093845,2.2252,224.67,224.62,2.28]
[1733224094442,12.6289879,224.72,224.62,2.28]
[1733224094643,4.52726709,224.75,224.62,2.28]
[1733224094644,2.28,224.75,224.62,2.28]
[1733224094844,12.6289879,224.73,224.62,2.28]
[1733224095041,2.28,224.75,224.62,2.28]
[1733224095243,12.6289879,224.79,224.62,14.9089879]
[1733224095450,12.6289879,224.78,224.63,1.4511]
[1733224095947,2.2245,224.73,224.66,2.2252]
[1733224096142,2.2245,224.73,224.67,2.28]
[1733224096448,12.6289879,224.78,224.67,2.28]
[1733224097448,2.2242,224.76,224.68,2.225]
[1733224098844,2.2242,224.76,224.69,2.2249]
[1733224099048,2.2242,224.76,224.68,12.6289879]
[1733224099049,2.2241,224.78,224.68,12.6289879]
[1733224099946,2.2241,224.78,224.71,2.2247]
[1733224100250,2.2241,224.78,224.72,2.28]
[1733224102243,2.2239,224.79,224.72,4.5046]
[1733224102450,14.9089879,224.85,224.72,4.5046]
[1733224102847,2.224,224.78,224.72,4.5046]
[1733224103047,2.224,224.78,224.72,2.28]
[1733224106046,2.2241,224.77,224.72,2.28]
[1733224106954,14.9089879,224.85,224.72,2.28]
[1733224107549,2.2241,224.78,224.72,2.28]
[1733224108554,4.475,224.87,224.75,2.2242]
[1733224108950,2.2235,224.84,224.75,2.2242]
[1733224109150,4.475,224.87,224.77,12.6289879]
[1733224109347,4.475,224.87,224.77,17.1330879]
[1733224109854,2.2235,224.84,224.77,14.9089879]
[1733224110049,14.9089879,224.96,224.8,12.6289879]
[1733224110357,14.9089879,224.96,224.83,12.6289879]
[1733224110549,14.9089879,224.96,224.83,14.9089879]
[1733224111049,2.2229,224.9,224.83,14.9089879]
[1733224111257,14.9089879,224.96,224.83,14.9089879]
[1733224111555,2.28,224.96,224.86,12.6289879]
[1733224112252,2.2225,224.93,224.86,12.6289879]
[1733224112450,2.28,224.96,224.86,12.6289879]
[1733224112956,2.2222,224.96,224.89,14.8518879]
[1733224113147,2.2222,224.96,224.89,17.1318879]
[1733224113654,2.2222,224.96,224.89,14.9089879]
[1733224114754,14.9089879,224.99,224.84,1.5426]
[1733224114950,1.5272,224.98,224.85,2.28]
[1733224117147,2.2227,224.92,224.85,2.28]
[1733224118253,12.6289879,225.01,224.87,12.6289879]
[1733224118849,2.2224,224.94,224.87,14.8520879]
[1733224119349,12.6289879,225.01,224.87,12.6289879]
[1733224120651,2.2224,224.94,224.87,14.8520879]
[1733224120857,12.6289879,224.98,224.85,2.28]
[1733224121057,2.3,224.97,224.85,2.28]
[1733224121258,2.2225,224.94,224.85,2.28]
[1733224121459,2.3,224.97,224.85,2.28]
[1733224122252,2.2227,224.91,224.85,2.28]
[1733224122551,2.3,224.97,224.85,2.28]
[1733224122948,2.2226,224.93,224.85,4.5033]
[1733224123149,2.3,224.97,224.85,4.5033]
[1733224123557,2.3,224.97,224.85,2.28]
[1733224123558,2.2228,224.91,224.85,2.28]
[1733224125860,12.6289879,224.95,224.85,4.5033]
[1733224126156,12.6289879,224.95,224.85,2.28]
[1733224126360,2.2225,224.94,224.85,4.5033]
[1733224126555,2.3,224.97,224.85,14.9089879]
[1733224127159,2.3,224.97,224.87,2.223]
[1733224127459,2.3,224.97,224.85,14.9089879]
[1733224127760,12.6289879,224.98,224.85,14.9089879]
[1733224128968,2.2224,224.94,224.87,2.2231]
[1733224130061,2.2226,224.93,224.87,2.2231]
[1733224131161,2.2226,224.93,224.88,1.11257352]
[1733224131355,2.2226,224.93,224.87,2.2231]
[1733224132260,2.2226,224.92,224.88,1.11257374]
[1733224132462,2.2226,224.92,224.87,2.2231]
[1733224132663,2.2226,224.92,224.88,1.11257374]
[1733224132866,2.2226,224.92,224.87,2.2231]
[1733224133059,2.2226,224.92,224.88,1.11257432]
[1733224133361,2.2226,224.92,224.87,2.2231]
[1733224133563,2.2226,224.92,224.88,1.11256983]
[1733224133763,2.2226,224.92,224.87,2.2231]
[1733224133964,2.2226,224.92,224.88,1.11256983]
[1733224134267,2.2226,224.92,224.88,2.223]
[1733224134568,2.2226,224.92,224.85,14.9089879]
[1733224134761,2.2226,224.92,224.87,2.2231]
[1733224135162,2.2225,224.94,224.88,12.6289879]
[1733224135461,2.2225,224.94,224.89,2.2229]
[1733224135666,2.3,225.0,224.9,2.3]
[1733224136066,12.6289879,225.01,224.9,2.3]
[1733224136468,2.2224,224.95,224.9,2.3]
[1733224136869,12.6289879,225.01,224.9,2.3]
[1733224137068,2.2224,224.95,224.9,2.3]
[1733224137267,12.6289879,225.01,224.9,2.3]
[1733224137568,2.2221,224.98,224.91,8.02178093]
[1733224137770,8.02178093,224.99,224.91,8.02178093]
[1733224138970,2.2223,224.96,224.91,8.02178093]
[1733224142170,2.2223,224.96,224.92,1.77999166]
[1733224142370,2.2223,224.96,224.93,2.89248645]
[1733224142673,2.2223,224.96,224.94,1.11249479]
[1733224142874,2.2223,224.96,224.95,1.11249479]
[1733224144272,2.2223,224.96,224.91,8.02178093]
[1733224144471,2.2223,224.96,224.92,2.89252179]
[1733224144679,2.2223,224.96,224.93,1.11250838]
[1733224144866,2.2223,224.96,224.94,1.11250838]
[1733224145174,2.2223,224.96,224.91,10.24448093]
[1733224145369,2.2223,224.96,224.92,2.89248794]
[1733224145578,2.2222,224.97,224.92,1.11249536]
[1733224145766,8.02178093,225.0,224.92,1.11249536]
[1733224146175,8.02178093,225.0,224.93,1.11249536]
[1733224146368,8.02178093,225.0,224.91,10.24448093]
[1733224146566,8.02178093,225.0,224.92,1.11250389]
[1733224146777,8.02178093,225.0,224.91,10.24448093]
[1733224146969,8.02178093,225.0,224.92,1.11250447]
[1733224147168,8.02178093,225.0,224.91,8.02178093]
[1733224147379,8.02178093,225.0,224.92,1.11250447]
[1733224147577,8.02178093,225.0,224.91,10.24448093]
[1733224147875,8.02178093,225.0,224.92,1.1124994]
[1733224148075,8.02178093,225.0,224.91,10.24448093]
[1733224148268,2.2222,224.96,224.91,10.24448093]
[1733224149274,8.02178093,224.94,224.83,0.29126373]
[1733224149577,30.65442814,225.04,224.72,20.78055366]
[1733224149578,8.02178093,224.92,224.84,13.19436213]
[1733224149770,2.2228,224.9,224.85,1.11253123]
[1733224150077,8.02178093,224.93,224.86,9.13431216]
[1733224150274,8.02178093,224.93,224.86,8.02178093]
[1733224150467,2.2228,224.9,224.84,10.30178093]
[1733224150668,8.02178093,224.91,224.85,1.11272804]
[1733224150972,8.02178093,224.89,224.82,8.02178093]
[1733224151379,8.02178093,224.89,224.83,1.11282173]
[1733224151679,8.02178093,224.89,224.82,8.02178093]
[1733224151680,2.2231,224.87,224.82,8.02178093]
[1733224151978,2.2231,224.87,224.83,1.11282518]
[1733224152175,2.2231,224.87,224.82,8.02178093]
[1733224153168,2.2232,224.86,224.82,8.02178093]
[1733224153569,8.02178093,224.87,224.81,2.28]
[1733224153772,2.2234,224.85,224.81,2.28]
[1733224154376,8.02178093,224.87,224.81,2.28]
[1733224154780,8.02178093,224.87,224.79,4.4935]
[1733224154975,2.2233,224.85,224.79,6.7174]
[1733224155178,2.2233,224.85,224.8,8.02178093]
[1733224155382,8.02178093,224.87,224.8,8.02178093]
[1733224155576,2.2233,224.85,224.8,8.02178093]
[1733224157590,2.2234,224.84,224.79,3.0603]
[1733224157779,8.02178093,224.87,224.79,3.0603]
[1733224158584,2.2235,224.84,224.79,3.0603]
[1733224158881,8.02178093,224.85,224.79,3.0603]
[1733224159071,3.767,224.92,224.74,2.28]
[1733224159072,8.02178093,224.83,224.74,2.28]
[1733224159276,8.02178093,224.83,224.74,8.02178093]
[1733224159674,2.2236,224.82,224.75,2.2243]
[1733224159873,2.2236,224.82,224.74,8.02178093]
[1733224160074,2.28,224.87,224.76,8.02178093]
[1733224160276,2.2235,224.84,224.77,2.2241]
[1733224160683,8.02178093,224.85,224.69,2.9933]
[1733224160684,30.66710793,224.91,224.82,8.02178093]
[1733224160879,8.02178093,224.9,224.82,8.02178093]
[1733224161084,30.66710793,224.91,224.82,8.02178093]
[1733224161280,38.68888886,224.91,224.82,8.02178093]
[1733224161481,2.27442293,225.12,224.84,8.02178093]
[1733224161681,8.02178093,224.95,224.88,2.223]
[1733224162185,2.28,225.0,224.85,2.28]
[1733224162186,8.02178093,224.97,224.89,8.02178093]
[1733224162478,8.02178093,224.97,224.85,2.28]
[1733224162479,8.02178093,224.97,224.86,1.5431]
[1733224162681,2.28,225.0,224.86,1.5431]
[1733224162682,10.24438093,224.93,224.86,1.5431]
[1733224162887,8.02178093,224.93,224.86,1.5431]
[1733224163081,8.02178093,224.93,224.85,2.28]
[1733224163277,2.28,224.96,224.85,2.28]
[1733224163278,2.2228,224.91,224.85,2.28]
[1733224163477,8.02178093,224.91,224.81,2.28]
[1733224163683,2.2229,224.89,224.82,10.24538093]
[1733224163982,8.02178093,224.91,224.82,8.02178093]
[1733224165187,2.2229,224.9,224.83,2.2235]
[1733224165389,8.02178093,224.93,224.84,8.02178093]
[1733224165585,8.02178093,224.93,224.85,2.2232]
[1733224167093,2.2226,224.92,224.85,2.2232]
[1733224167692,2.2227,224.91,224.85,2.2232]
[1733224167886,8.02178093,224.91,224.79,1.5431]
[1733224168093,8.02178093,224.87,224.8,2.28]
[1733224168293,2.2233,224.86,224.79,1.5431]
[1733224168483,8.02178093,224.87,224.79,2.2239]
[1733224168688,8.02178093,224.87,224.78,13.24208093]
[1733224169493,8.02178093,224.87,224.8,8.02178093]
[1733224169693,2.2234,224.85,224.79,8.02178093]
[1733224169889,8.02178093,224.87,224.78,5.2203]
[1733224170092,8.02178093,224.87,224.78,13.24208093]
[1733224170493,8.02178093,224.87,224.78,5.2203]
[1733224170693,2.2235,224.84,224.79,2.2239]
[1733224171694,2.2235,224.83,224.79,2.2239]
[1733224172392,8.02178093,224.89,224.8,8.02178093]
[1733224173094,2.2234,224.84,224.8,10.24558093]
[1733224173293,8.02178093,224.89,224.8,8.02178093]
[1733224173690,8.02178093,224.87,224.8,8.02178093]
[1733224174394,2.2234,224.85,224.8,10.24548093]
[1733224176390,2.2234,224.84,224.8,10.24548093]
[1733224177097,8.02178093,224.87,224.78,11.74508093]
[1733224177292,2.2236,224.82,224.78,13.96908093]
[1733224177597,8.02178093,224.83,224.76,1.4469]
[1733224177798,2.2239,224.79,224.76,1.4469]
[1733224178597,2.2239,224.8,224.76,1.4469]
[1733224179700,2.2239,224.79,224.76,1.4469]
[1733224179999,8.02178093,224.83,224.76,1.4469]
[1733224180500,2.2238,224.81,224.76,1.4469]
[1733224180701,8.02178093,224.83,224.76,1.4469]
[1733224181092,8.02178093,224.83,224.76,9.46868093]
[1733224181994,2.2236,224.82,224.76,11.69288093]
[1733224182196,8.02178093,224.83,224.76,9.46868093]
[1733224182700,2.2236,224.82,224.76,11.69288093]
[1733224184305,2.2237,224.81,224.76,11.69288093]
[1733224189007,2.2237,224.81,224.76,9.46868093]
[1733224189308,8.02178093,224.87,224.78,8.02178093]
[1733224189617,8.02178093,224.87,224.78,10.30178093]
[1733224189811,2.2233,224.86,224.8,8.02178093]
[1733224190013,30.66910178,224.89,224.8,8.02178093]
[1733224190311,38.69088271,224.89,224.8,8.02178093]
[1733224190709,2.2232,224.87,224.82,2.2236]
[1733224191403,8.02178093,224.99,224.85,8.02178093]
[1733224191602,8.02178093,224.99,224.9,8.02178093]
[1733224191804,10.24398093,224.97,224.9,8.02178093]
[1733224192612,8.02178093,224.97,224.9,10.24458093]
[1733224193215,8.02178093,224.97,224.9,2.2228]
[1733224193409,10.24398093,224.97,224.9,10.24458093]
[1733224194213,8.02178093,224.95,224.86,5.2688]
[1733224194508,2.21898361,225.06,224.86,5.2688]
[1733224194509,8.02178093,224.93,224.86,5.2688]
[1733224194716,10.24438093,224.93,224.86,7.492]
[1733224194913,8.02178093,224.93,224.86,3.7559]
[1733224195414,8.02178093,224.93,224.86,11.77768093]
[1733224196018,8.02178093,224.93,224.86,14.00088093]
[1733224196814,8.02178093,224.93,224.86,11.77768093]
[1733224197009,8.02178093,224.93,224.87,2.2231]
[1733224198112,10.24438093,224.93,224.87,2.2231]
[1733224198313,2.2226,224.93,224.87,2.2231]
[1733224199717,10.24428093,224.94,224.88,2.223]
[1733224202321,2.2226,224.93,224.87,2.2231]
[1733224202514,8.02178093,224.94,224.86,11.77768093]
[1733224202715,2.2225,224.94,224.88,2.223]
[1733224202911,10.24428093,224.94,224.88,2.223]
[1733224203316,2.2225,224.94,224.88,2.223]
[1733224203519,10.24438093,224.93,224.87,2.2231]
[1733224203821,8.02178093,224.93,224.86,2.28]
[1733224204113,10.24458093,224.91,224.85,2.2233]
[1733224204326,2.28,224.93,224.79,8.02178093]
[1733224204515,8.02178093,224.87,224.8,2.28]
[1733224204717,8.02178093,224.87,224.82,2.2236]
[1733224205316,10.24518093,224.85,224.78,3.8572]
[1733224205923,2.2234,224.84,224.78,3.8572]
[1733224206316,2.2229,224.9,224.83,2.2234]
[1733224206512,8.02178093,224.9,224.81,8.02178093]
[1733224206814,8.02178093,224.88,224.79,8.02178093]
[1733224207019,2.2232,224.86,224.79,12.52568093]
[1733224207621,2.2232,224.86,224.8,2.2238]
[1733224207821,2.2232,224.86,224.79,10.30178093]
[1733224208019,8.02178093,224.88,224.79,10.30178093]
[1733224208223,8.02178093,224.88,224.8,2.2237]
[1733224208922,2.2233,224.86,224.8,2.2237]
[1733224212014,2.28,224.9,224.79,10.30178093]
[1733224212215,10.30178093,224.9,224.81,8.02178093]
[1733224212420,4.4907,224.97,224.83,8.02178093]
[1733224212421,8.02178093,224.91,224.83,8.02178093]
[1733224212716,8.02178093,224.93,224.85,8.02178093]
[1733224214020,8.02178093,224.91,224.84,2.28]
[1733224214216,8.02178093,224.89,224.8,2.28]
[1733224214420,8.02178093,224.87,224.79,2.28]
[1733224214617,2.2232,224.86,224.79,2.28]
[1733224214823,8.02178093,224.87,224.79,2.28]
[1733224215123,8.02178093,224.87,224.8,2.2238]
[1733224215124,2.2233,224.85,224.8,2.2238]
[1733224215825,2.2233,224.85,224.81,2.2237]
[1733224216028,2.2233,224.85,224.79,2.28]
[1733224217128,2.2233,224.85,224.81,2.2237]
[1733224217427,2.2233,224.85,224.79,2.28]
[1733224217625,2.2233,224.85,224.8,2.2238]
[1733224218424,2.2233,224.85,224.81,2.2237]
[1733224221725,2.2234,224.85,224.8,2.2237]
[1733224222023,8.02178093,224.87,224.79,10.30178093]
[1733224222225,2.2232,224.87,224.83,2.2235]
[1733224222425,8.02178093,224.89,224.81,8.02178093]
[1733224222820,2.2231,224.88,224.83,2.2235]
[1733224224119,10.24488093,224.87,224.81,2.2236]
[1733224224526,10.24488093,224.87,224.79,2.28]
[1733224224527,8.02178093,224.85,224.79,2.28]
[1733224224831,2.2238,224.81,224.74,1.4428]
[1733224225023,2.28,224.86,224.73,1.52]
[1733224225024,8.02178093,224.8,224.73,1.52]
[1733224225226,8.02178093,224.8,224.7,10.30178093]
[1733224225431,2.2241,224.78,224.72,2.2245]
[1733224225726,2.2241,224.78,224.7,2.28]
[1733224225727,8.02178093,224.78,224.7,2.28]
[1733224225927,10.24588093,224.78,224.71,60.07200061]
[1733224226425,8.02178093,224.76,224.69,2.28]
[1733224226634,3.0816,224.84,224.69,2.28]
[1733224226635,10.24618093,224.74,224.69,2.28]
[1733224227224,8.02178093,224.74,224.66,9.59498093]
[1733224227529,8.02178093,224.74,224.67,2.2251]
[1733224227930,10.24618093,224.74,224.66,11.87498093]
[1733224228328,10.24618093,224.74,224.66,14.10008093]
[1733224228329,8.02178093,224.74,224.66,14.10008093]
[1733224229225,8.02178093,224.74,224.67,2.2251]
[1733224230328,8.02178093,224.74,224.66,11.87498093]
[1733224230533,2.28,224.79,224.66,11.87498093]
[1733224230730,8.02178093,224.75,224.66,11.87498093]
[1733224231531,8.02178093,224.75,224.69,2.2249]
[1733224231532,10.24608093,224.75,224.69,2.2249]
[1733224231930,8.02178093,224.75,224.66,3.8532]
[1733224232126,8.02178093,224.75,224.67,10.24678093]
[1733224232127,2.2245,224.74,224.67,10.24678093]
[1733224232331,2.2245,224.74,224.67,8.02178093]
[1733224233037,2.2246,224.73,224.68,2.225]
[1733224233434,8.02178093,224.75,224.66,3.8532]
[1733224233735,2.2247,224.72,224.67,2.225]
[1733224234136,8.02178093,224.75,224.66,11.87498093]
[1733224234137,2.2245,224.73,224.66,11.87498093]
[1733224234333,8.02178093,224.79,224.7,8.02178093]
[1733224234529,8.02178093,224.79,224.71,2.28]
[1733224235427,8.02178093,224.79,224.73,2.2245]
[1733224235828,2.2241,224.78,224.74,2.2244]
[1733224236227,2.2241,224.78,224.72,8.02178093]
[1733224236432,10.24568093,224.79,224.74,2.2244]
[1733224236636,8.02178093,224.79,224.72,8.02178093]
[1733224237037,8.02178093,224.79,224.75,2.2243]
[1733224237233,8.02178093,224.79,224.72,8.02178093]
[1733224237633,8.02178093,224.81,224.72,8.02178093]
[1733224238935,2.2239,224.79,224.74,2.2243]
[1733224240536,8.02178093,224.81,224.73,8.02178093]
[1733224241135,10.24548093,224.81,224.76,2.2241]
[1733224241438,10.24548093,224.81,224.73,8.02178093]
[1733224241640,2.2236,224.82,224.77,2.2241]
[1733224242036,8.02178093,224.84,224.75,8.02178093]
[1733224242934,2.2236,224.83,224.78,2.224]
[1733224244740,8.02178093,224.8,224.72,1.4267]
[1733224244935,8.02178093,224.78,224.72,3.7067]
[1733224245238,8.02178093,224.8,224.72,3.7067]
[1733224245438,2.2239,224.79,224.72,3.7067]
[1733224246144,2.2239,224.79,224.75,2.2243]
[1733224247340,2.2239,224.79,224.74,2.2244]
[1733224247744,2.2239,224.79,224.73,8.02178093]
[1733224248442,2.2239,224.79,224.74,2.2244]
[1733224250741,2.224,224.78,224.74,2.2244]
[1733224250938,8.02178093,224.76,224.72,2.2246]
[1733224251139,8.02178093,224.74,224.7,57.850564]
[1733224251336,10.24628093,224.74,224.7,57.850564]
[1733224251741,2.2245,224.74,224.7,57.850564]
[1733224251943,8.02178093,224.74,224.7,57.850564]
[1733224252143,8.02178093,224.72,224.65,2.28]
[1733224252343,8.02178093,224.72,224.66,2.2252]
[1733224252546,2.2248,224.7,224.66,2.2252]
[1733224252748,8.02178093,224.7,224.64,2.28]
[1733224252948,3.77,224.79,224.55,3.0585]
[1733224252949,8.02178093,224.68,224.55,3.0585]
[1733224253148,8.02178093,224.66,224.58,8.02178093]
[1733224253742,2.2253,224.65,224.6,2.2257]
[1733224254241,2.28,224.7,224.57,8.02178093]
[1733224254242,8.02178093,224.64,224.57,8.02178093]
[1733224254748,2.2256,224.62,224.58,2.226]
[1733224255148,8.02178093,224.64,224.58,2.226]
[1733224255349,8.02178093,224.64,224.57,8.02178093]
[1733224255555,2.2256,224.63,224.59,2.2259]
[1733224256051,2.2256,224.63,224.58,2.226]
[1733224256748,2.2256,224.63,224.59,2.2259]
[1733224259051,8.02178093,224.64,224.56,2.28]
[1733224259246,1.4839,224.73,224.51,8.02178093]
[1733224259247,8.02178093,224.58,224.51,8.02178093]
[1733224259451,8.02178093,224.58,224.51,10.30178093]
[1733224259950,10.24778093,224.58,224.53,2.2264]
[1733224260347,8.02178093,224.56,224.5,2.28]
[1733224260546,10.24808093,224.56,224.51,2.2266]
[1733224260752,8.02178093,224.54,224.5,2.28]
[1733224260954,8.02178093,224.52,224.45,2.28]
[1733224261147,8.02178093,224.52,224.45,2.2272]
[1733224261344,8.02178093,224.52,224.44,10.30178093]
[1733224262144,10.24838093,224.52,224.45,2.2272]
[1733224263053,8.02178093,224.54,224.48,8.02178093]
[1733224263248,8.02178093,224.56,224.48,8.02178093]
[1733224263453,8.02178093,224.56,224.52,2.2266]
[1733224263656,8.02178093,224.56,224.49,2.28]